[Event "Titled Tuesday Blitz May 30 Late 2023"]
[White "Halkias, Stelios"]
[Black "Moussard, Jules"]
[WhiteFideId "4201809"]
[BlackFideId "642908"]
[WhiteElo "2451"]
[BlackElo "2610"]
[Result "1-0"]
[Round "03"]
[TimeControl "180+2"]
[Date "2023.05.31"]
[WhiteClock "0:00:14"]
[BlackClock "0:00:02"]

1. d4 {[%clk 0:03:00]}  f5 {[%clk 0:02:58]} 2. Nf3 {[%clk 0:02:59]}  Nf6 {[%clk 0:02:59]} 3. g3 {[%clk 0:03:00]}  g6 {[%clk 0:02:59]} 4. Bg2 {[%clk 0:03:01]}  Bg7 {[%clk 0:03:00]} 5. O-O {[%clk 0:03:01]}  O-O {[%clk 0:03:00]} 6. c4 {[%clk 0:03:02]}  d6 {[%clk 0:03:01]} 7. Nc3 {[%clk 0:03:02]}  c6 {[%clk 0:03:01]} 8. Rb1 {[%clk 0:03:02]}  a5 {[%clk 0:02:59]} 9. Qc2 {[%clk 0:02:58]}  Na6 {[%clk 0:02:52]} 10. b3 {[%clk 0:02:56]}  Qc7 {[%clk 0:02:49]} 11. Bb2 {[%clk 0:02:30]}  e5 {[%clk 0:02:47]} 12. c5 {[%clk 0:02:25]}  exd4 {[%clk 0:02:12]} 13. cxd6 {[%clk 0:02:13]}  Qxd6 {[%clk 0:02:13]} 14. Rbd1 {[%clk 0:02:10]}  c5 {[%clk 0:02:03]} 15. e3 {[%clk 0:02:03]}  f4 {[%clk 0:01:34]} 16. exd4 {[%clk 0:01:58]}  Bf5 {[%clk 0:01:31]} 17. Qe2 {[%clk 0:01:55]}  fxg3 {[%clk 0:01:25]} 18. hxg3 {[%clk 0:01:49]}  Kh8 {[%clk 0:01:16]} 19. Nb5 {[%clk 0:01:37]}  Qb6 {[%clk 0:01:09]} 20. dxc5 {[%clk 0:01:33]}  Nxc5 {[%clk 0:01:09]} 21. Rd6 {[%clk 0:01:11]}  Bd3 {[%clk 0:00:58]} 22. Qxd3 {[%clk 0:01:10]}  Nxd3 {[%clk 0:00:58]} 23. Rxb6 {[%clk 0:01:10]}  Nxb2 {[%clk 0:00:59]} 24. Rxb7 {[%clk 0:01:08]}  Nd3 {[%clk 0:00:35]} 25. Ng5 {[%clk 0:01:00]}  Rae8 {[%clk 0:00:27]} 26. Nd6 {[%clk 0:00:48]}  Re2 {[%clk 0:00:22]} 27. Bf3 {[%clk 0:00:43]}  Rxa2 {[%clk 0:00:20]} 28. Ne6 {[%clk 0:00:37]}  Ne5 {[%clk 0:00:18]} 29. Bg2 {[%clk 0:00:27]}  Rd2 {[%clk 0:00:07]} 30. Nxf8 {[%clk 0:00:21]}  Rxd6 {[%clk 0:00:07]} 31. Rb8 {[%clk 0:00:20]}  Bxf8 {[%clk 0:00:07]} 32. Rxf8+ {[%clk 0:00:20]}  Kg7 {[%clk 0:00:08]} 33. Ra8 {[%clk 0:00:21]}  Rb6 {[%clk 0:00:05]} 34. Rxa5 {[%clk 0:00:20]}  Nd3 {[%clk 0:00:06]} 35. Rd1 {[%clk 0:00:19]}  Rxb3 {[%clk 0:00:06]} 36. Bf1 {[%clk 0:00:18]}  Nb2 {[%clk 0:00:03]} 37. Ra7+ {[%clk 0:00:18]}  Kh6 {[%clk 0:00:03]} 38. Rb1 {[%clk 0:00:18]}  Ne4 {[%clk 0:00:03]} 39. Ra2 {[%clk 0:00:17]}  Nxf2 {[%clk 0:00:02]} 40. Kxf2 {[%clk 0:00:14]} 1-0


[Site "https://www.chess.com"]

[Event "Titled Tuesday Blitz May 30 Late 2023"]
[White "Sjugirov, Sanan"]
[Black "Matinian, Nikita"]
[WhiteFideId "4189302"]
[BlackFideId "24129100"]
[WhiteElo "2569"]
[BlackElo "2422"]
[Result "0-1"]
[Round "03"]
[TimeControl "180+2"]
[Date "2023.05.31"]
[WhiteClock "0:00:02"]
[BlackClock "0:00:04"]

1. e4 {[%clk 0:03:00]}  d6 {[%clk 0:03:00]} 2. d4 {[%clk 0:03:00]}  g6 {[%clk 0:03:01]} 3. Nc3 {[%clk 0:02:58]}  Bg7 {[%clk 0:03:01]} 4. Be3 {[%clk 0:02:53]}  a6 {[%clk 0:03:01]} 5. Qd2 {[%clk 0:02:49]}  b5 {[%clk 0:03:00]} 6. Nf3 {[%clk 0:02:47]}  Bb7 {[%clk 0:02:58]} 7. Bd3 {[%clk 0:02:47]}  Nd7 {[%clk 0:02:52]} 8. a4 {[%clk 0:02:45]}  b4 {[%clk 0:02:52]} 9. Ne2 {[%clk 0:02:45]}  Ngf6 {[%clk 0:02:46]} 10. Ng3 {[%clk 0:02:44]}  a5 {[%clk 0:02:43]} 11. Bh6 {[%clk 0:02:33]}  O-O {[%clk 0:02:31]} 12. O-O {[%clk 0:02:24]}  c5 {[%clk 0:02:23]} 13. c3 {[%clk 0:02:20]}  cxd4 {[%clk 0:02:10]} 14. cxd4 {[%clk 0:02:19]}  Rc8 {[%clk 0:02:05]} 15. h3 {[%clk 0:02:04]}  e6 {[%clk 0:01:55]} 16. Rfe1 {[%clk 0:01:54]}  Re8 {[%clk 0:01:36]} 17. Bxg7 {[%clk 0:01:51]}  Kxg7 {[%clk 0:01:35]} 18. Bb5 {[%clk 0:01:38]}  Bc6 {[%clk 0:01:21]} 19. Ba6 {[%clk 0:01:07]}  Rc7 {[%clk 0:01:21]} 20. Bd3 {[%clk 0:01:01]}  Qe7 {[%clk 0:01:13]} 21. Qg5 {[%clk 0:00:49]}  h6 {[%clk 0:01:07]} 22. Qxa5 {[%clk 0:00:28]}  Rb7 {[%clk 0:00:36]} 23. Rac1 {[%clk 0:00:25]}  Rb6 {[%clk 0:00:29]} 24. Bb5 {[%clk 0:00:22]}  Ra8 {[%clk 0:00:25]} 25. Qxb4 {[%clk 0:00:20]}  Bxb5 {[%clk 0:00:24]} 26. axb5 {[%clk 0:00:21]}  Rab8 {[%clk 0:00:24]} 27. Qa3 {[%clk 0:00:08]}  Rxb5 {[%clk 0:00:23]} 28. e5 {[%clk 0:00:09]}  Ne8 {[%clk 0:00:19]} 29. Ne4 {[%clk 0:00:08]}  Rb3 {[%clk 0:00:15]} 30. exd6 {[%clk 0:00:07]}  Qd8 {[%clk 0:00:13]} 31. Qa7 {[%clk 0:00:05]}  R8b7 {[%clk 0:00:12]} 32. Qa4 {[%clk 0:00:04]}  Rxb2 {[%clk 0:00:10]} 33. Ne5 {[%clk 0:00:04]}  Nef6 {[%clk 0:00:10]} 34. Nc5 {[%clk 0:00:02]}  R7b4 {[%clk 0:00:07]} 35. Qa1 {[%clk 0:00:02]}  Nxe5 {[%clk 0:00:04]} 36. dxe5 {[%clk 0:00:02]}  Nd5 {[%clk 0:00:04]} 37. Nd3 {[%clk 0:00:02]}  Qg5 {[%clk 0:00:03]} 38. Nxb2 {[%clk 0:00:02]}  Nf4 {[%clk 0:00:04]} 39. Qa8 {[%clk 0:00:02]}  Nxh3+ {[%clk 0:00:03]} 40. Kf1 {[%clk 0:00:02]}  Rxb2 {[%clk 0:00:04]} 0-1


[Site "https://www.chess.com"]

[Event "Titled Tuesday Blitz May 30 Late 2023"]
[White "Svane, Rasmus"]
[Black "Rastbod, Ali"]
[WhiteFideId "4657101"]
[BlackFideId "12567477"]
[WhiteElo "2601"]
[BlackElo "2274"]
[Result "0-1"]
[Round "03"]
[TimeControl "180+2"]
[Date "2023.05.31"]
[WhiteClock "0:00:14"]
[BlackClock "0:00:15"]

1. Nf3 {[%clk 0:03:00]}  d5 {[%clk 0:02:49]} 2. g3 {[%clk 0:03:01]}  c6 {[%clk 0:02:48]} 3. Bg2 {[%clk 0:03:01]}  Bg4 {[%clk 0:02:49]} 4. O-O {[%clk 0:03:02]}  Nd7 {[%clk 0:02:49]} 5. h3 {[%clk 0:03:02]}  Bh5 {[%clk 0:02:49]} 6. d4 {[%clk 0:03:03]}  e6 {[%clk 0:02:49]} 7. c4 {[%clk 0:03:03]}  Ngf6 {[%clk 0:02:49]} 8. cxd5 {[%clk 0:03:03]}  exd5 {[%clk 0:02:41]} 9. Ne5 {[%clk 0:03:04]}  Bd6 {[%clk 0:02:39]} 10. f4 {[%clk 0:03:03]}  Qe7 {[%clk 0:02:15]} 11. Nc3 {[%clk 0:03:00]}  O-O {[%clk 0:02:00]} 12. g4 {[%clk 0:02:45]}  Bg6 {[%clk 0:01:58]} 13. Nxd7 {[%clk 0:02:45]}  Qxd7 {[%clk 0:01:28]} 14. f5 {[%clk 0:02:44]}  Rfe8 {[%clk 0:01:28]} 15. Qd3 {[%clk 0:02:40]}  b5 {[%clk 0:01:24]} 16. fxg6 {[%clk 0:02:38]}  hxg6 {[%clk 0:01:24]} 17. a3 {[%clk 0:02:33]}  a5 {[%clk 0:01:24]} 18. Bg5 {[%clk 0:02:25]}  b4 {[%clk 0:01:24]} 19. axb4 {[%clk 0:02:25]}  axb4 {[%clk 0:01:25]} 20. Rxa8 {[%clk 0:02:22]}  Rxa8 {[%clk 0:01:26]} 21. Nd1 {[%clk 0:02:20]}  Qe6 {[%clk 0:01:22]} 22. Bxf6 {[%clk 0:02:19]}  gxf6 {[%clk 0:01:22]} 23. e4 {[%clk 0:02:19]}  Re8 {[%clk 0:01:21]} 24. exd5 {[%clk 0:02:02]}  cxd5 {[%clk 0:01:22]} 25. Qf3 {[%clk 0:02:03]}  Kg7 {[%clk 0:01:16]} 26. Qxd5 {[%clk 0:02:02]}  Qe7 {[%clk 0:01:15]} 27. Nf2 {[%clk 0:02:01]}  Bb8 {[%clk 0:01:11]} 28. Ne4 {[%clk 0:01:51]}  Qc7 {[%clk 0:01:03]} 29. Rf3 {[%clk 0:00:44]}  Qc1+ {[%clk 0:00:57]} 30. Bf1 {[%clk 0:00:45]}  Qc2 {[%clk 0:00:43]} 31. Nf2 {[%clk 0:00:40]}  Re1 {[%clk 0:00:34]} 32. Qb3 {[%clk 0:00:29]}  Qc7 {[%clk 0:00:21]} 33. Rg3 {[%clk 0:00:09]}  Qxg3+ {[%clk 0:00:20]} 34. Qxg3 {[%clk 0:00:10]}  Bxg3 {[%clk 0:00:20]} 35. Nd3 {[%clk 0:00:10]}  Rb1 {[%clk 0:00:17]} 36. Nxb4 {[%clk 0:00:11]}  Rxb2 {[%clk 0:00:16]} 37. Nd3 {[%clk 0:00:11]}  Rd2 {[%clk 0:00:16]} 38. d5 {[%clk 0:00:11]}  Bd6 {[%clk 0:00:15]} 39. h4 {[%clk 0:00:07]}  Kh6 {[%clk 0:00:14]} 40. Kh1 {[%clk 0:00:07]}  Bg3 {[%clk 0:00:13]} 41. Kg1 {[%clk 0:00:07]}  g5 {[%clk 0:00:11]} 42. hxg5+ {[%clk 0:00:02]}  Kxg5 {[%clk 0:00:12]} 43. Nb4 {[%clk 0:00:02]}  Kxg4 {[%clk 0:00:08]} 44. Bd3 {[%clk 0:00:01]}  Bd6 {[%clk 0:00:06]} 45. Kf1 {[%clk 0:00:01]}  Bxb4 {[%clk 0:00:06]} 46. Be2+ {[%clk 0:00:02]}  Kf4 {[%clk 0:00:05]} 47. Kf2 {[%clk 0:00:02]}  Rxd5 {[%clk 0:00:05]} 48. Bc4 {[%clk 0:00:03]}  Re5 {[%clk 0:00:06]} 49. Be2 {[%clk 0:00:03]}  Bc5+ {[%clk 0:00:07]} 50. Kf1 {[%clk 0:00:04]}  Rxe2 {[%clk 0:00:07]} 51. Kxe2 {[%clk 0:00:03]}  Kg3 {[%clk 0:00:08]} 52. Kf1 {[%clk 0:00:04]}  Kf3 {[%clk 0:00:09]} 53. Ke1 {[%clk 0:00:05]}  Kg2 {[%clk 0:00:09]} 54. Ke2 {[%clk 0:00:05]}  f5 {[%clk 0:00:10]} 55. Kd3 {[%clk 0:00:06]}  f4 {[%clk 0:00:11]} 56. Ke4 {[%clk 0:00:07]}  f3 {[%clk 0:00:12]} 57. Kf5 {[%clk 0:00:08]}  f2 {[%clk 0:00:13]} 58. Kg5 {[%clk 0:00:09]}  f1=Q {[%clk 0:00:13]} 59. Kh6 {[%clk 0:00:10]}  Qf5 {[%clk 0:00:13]} 60. Kg7 {[%clk 0:00:11]}  Qg6+ {[%clk 0:00:13]} 61. Kh8 {[%clk 0:00:11]}  Qg5 {[%clk 0:00:14]} 62. Kh7 {[%clk 0:00:12]}  Bb6 {[%clk 0:00:14]} 63. Kh8 {[%clk 0:00:13]}  Bd4+ {[%clk 0:00:15]} 64. Kh7 {[%clk 0:00:14]}  Qg7# {[%clk 0:00:15]} 0-1


[Site "https://www.chess.com"]

[Event "Titled Tuesday Blitz May 30 Late 2023"]
[White "Kevlishvili, Robby"]
[Black "Prohaszka, Peter"]
[WhiteFideId "1040634"]
[BlackFideId "726265"]
[WhiteElo "2572"]
[BlackElo "2626"]
[Result "0-1"]
[Round "03"]
[TimeControl "180+2"]
[Date "2023.05.31"]
[WhiteClock "0:01:21"]
[BlackClock "0:00:26"]

1. e4 {[%clk 0:03:00]}  c6 {[%clk 0:02:59]} 2. Nf3 {[%clk 0:02:58]}  d5 {[%clk 0:02:57]} 3. Nc3 {[%clk 0:02:59]}  dxe4 {[%clk 0:02:56]} 4. Nxe4 {[%clk 0:02:59]}  Nf6 {[%clk 0:02:57]} 5. Qe2 {[%clk 0:02:59]}  Nxe4 {[%clk 0:02:57]} 6. Qxe4 {[%clk 0:03:00]}  Qa5 {[%clk 0:02:57]} 7. Qf4 {[%clk 0:02:57]}  Qf5 {[%clk 0:02:56]} 8. Qe3 {[%clk 0:02:57]}  Qe6 {[%clk 0:02:56]} 9. b3 {[%clk 0:02:57]}  Qxe3+ {[%clk 0:02:57]} 10. fxe3 {[%clk 0:02:58]}  Bf5 {[%clk 0:02:56]} 11. Bb2 {[%clk 0:02:58]}  e6 {[%clk 0:02:57]} 12. O-O-O {[%clk 0:02:58]}  a5 {[%clk 0:02:57]} 13. a3 {[%clk 0:02:54]}  a4 {[%clk 0:02:54]} 14. b4 {[%clk 0:02:54]}  Nd7 {[%clk 0:02:48]} 15. Be2 {[%clk 0:02:54]}  Bg6 {[%clk 0:02:46]} 16. Nh4 {[%clk 0:02:53]}  f6 {[%clk 0:02:41]} 17. Nxg6 {[%clk 0:02:51]}  hxg6 {[%clk 0:02:42]} 18. h4 {[%clk 0:02:50]}  Bd6 {[%clk 0:02:41]} 19. g4 {[%clk 0:02:50]}  Kf7 {[%clk 0:02:23]} 20. Rdg1 {[%clk 0:02:49]}  Rh7 {[%clk 0:02:19]} 21. h5 {[%clk 0:02:47]}  g5 {[%clk 0:02:09]} 22. Bd3 {[%clk 0:02:47]}  Rhh8 {[%clk 0:02:10]} 23. Rf1 {[%clk 0:02:40]}  Ne5 {[%clk 0:02:06]} 24. Be2 {[%clk 0:02:40]}  Ke7 {[%clk 0:02:06]} 25. d4 {[%clk 0:02:36]}  Nf7 {[%clk 0:02:07]} 26. c4 {[%clk 0:02:37]}  Nh6 {[%clk 0:02:01]} 27. e4 {[%clk 0:02:35]}  Bf4+ {[%clk 0:02:00]} 28. Kc2 {[%clk 0:02:35]}  Rac8 {[%clk 0:01:54]} 29. Kd3 {[%clk 0:02:15]}  Rhd8 {[%clk 0:01:51]} 30. Bf3 {[%clk 0:02:08]}  Nf7 {[%clk 0:01:41]} 31. Kc3 {[%clk 0:02:00]}  Rxd4 {[%clk 0:01:11]} 32. Kxd4 {[%clk 0:01:57]}  Be5+ {[%clk 0:01:11]} 33. Kc5 {[%clk 0:01:50]}  Bxb2 {[%clk 0:01:11]} 34. Kb6 {[%clk 0:01:49]}  Bxa3 {[%clk 0:01:01]} 35. Rb1 {[%clk 0:01:44]}  c5 {[%clk 0:01:01]} 36. b5 {[%clk 0:01:42]}  Bb4 {[%clk 0:00:51]} 37. e5 {[%clk 0:01:40]}  Nxe5 {[%clk 0:00:49]} 38. Bxb7 {[%clk 0:01:39]}  Nxc4+ {[%clk 0:00:45]} 39. Ka7 {[%clk 0:01:39]}  Rd8 {[%clk 0:00:41]} 40. h6 {[%clk 0:01:32]}  gxh6 {[%clk 0:00:41]} 41. Rxh6 {[%clk 0:01:32]}  a3 {[%clk 0:00:41]} 42. Rh7+ {[%clk 0:01:31]}  Kd6 {[%clk 0:00:41]} 43. Rd1+ {[%clk 0:01:31]}  Nd2 {[%clk 0:00:31]} 44. b6 {[%clk 0:01:30]}  c4 {[%clk 0:00:29]} 45. Ba6 {[%clk 0:01:23]}  c3 {[%clk 0:00:26]} 46. b7 {[%clk 0:01:21]}  Bc5# {[%clk 0:00:26]} 0-1


[Site "https://www.chess.com"]

[Event "Titled Tuesday Blitz May 30 Late 2023"]
[White "Kamsky, Gata"]
[Black "Sun, Rick"]
[WhiteFideId "2000024"]
[BlackFideId "30909481"]
[WhiteElo "2660"]
[BlackElo "2169"]
[Result "0-1"]
[Round "03"]
[TimeControl "180+2"]
[Date "2023.05.31"]
[WhiteClock "0:00:01"]
[BlackClock "0:00:15"]

1. d4 {[%clk 0:03:00]}  Nf6 {[%clk 0:02:59]} 2. Bf4 {[%clk 0:02:59]}  d6 {[%clk 0:02:59]} 3. h3 {[%clk 0:02:58]}  g6 {[%clk 0:03:00]} 4. c3 {[%clk 0:02:57]}  Bg7 {[%clk 0:03:00]} 5. Nf3 {[%clk 0:02:57]}  O-O {[%clk 0:03:01]} 6. Nbd2 {[%clk 0:02:55]}  Nc6 {[%clk 0:03:01]} 7. e4 {[%clk 0:02:55]}  Nh5 {[%clk 0:02:58]} 8. Bg5 {[%clk 0:02:41]}  h6 {[%clk 0:02:55]} 9. Be3 {[%clk 0:02:41]}  e5 {[%clk 0:02:54]} 10. dxe5 {[%clk 0:02:41]}  dxe5 {[%clk 0:02:51]} 11. Bc5 {[%clk 0:02:37]}  Re8 {[%clk 0:02:46]} 12. Nc4 {[%clk 0:02:37]}  Qf6 {[%clk 0:02:40]} 13. Ne3 {[%clk 0:02:23]}  Be6 {[%clk 0:02:31]} 14. Ng4 {[%clk 0:01:30]}  Bxg4 {[%clk 0:02:20]} 15. hxg4 {[%clk 0:01:29]}  Nf4 {[%clk 0:02:20]} 16. Qb3 {[%clk 0:01:24]}  b6 {[%clk 0:02:11]} 17. Be3 {[%clk 0:01:23]}  Rad8 {[%clk 0:02:05]} 18. Rd1 {[%clk 0:01:15]}  Rxd1+ {[%clk 0:02:03]} 19. Kxd1 {[%clk 0:01:15]}  Rd8+ {[%clk 0:01:59]} 20. Kc2 {[%clk 0:01:15]}  Qd6 {[%clk 0:01:50]} 21. Nd2 {[%clk 0:01:13]}  Nd3 {[%clk 0:01:33]} 22. Be2 {[%clk 0:00:35]}  Na5 {[%clk 0:01:11]} 23. Qa4 {[%clk 0:00:32]}  Nxf2 {[%clk 0:00:52]} 24. b4 {[%clk 0:00:31]}  Nxh1 {[%clk 0:00:47]} 25. bxa5 {[%clk 0:00:28]}  Ng3 {[%clk 0:00:46]} 26. Bc4 {[%clk 0:00:26]}  Nxe4 {[%clk 0:00:42]} 27. Bxf7+ {[%clk 0:00:20]}  Kxf7 {[%clk 0:00:40]} 28. Qxe4 {[%clk 0:00:21]}  Qd5 {[%clk 0:00:31]} 29. a4 {[%clk 0:00:15]}  Qa2+ {[%clk 0:00:28]} 30. Kd1 {[%clk 0:00:14]}  Qa1+ {[%clk 0:00:25]} 31. Kc2 {[%clk 0:00:14]}  Qa2+ {[%clk 0:00:22]} 32. Kd1 {[%clk 0:00:14]}  Qd5 {[%clk 0:00:22]} 33. Kc2 {[%clk 0:00:12]}  Qxe4+ {[%clk 0:00:21]} 34. Nxe4 {[%clk 0:00:12]}  Rd5 {[%clk 0:00:21]} 35. a6 {[%clk 0:00:11]}  Ra5 {[%clk 0:00:20]} 36. Kb3 {[%clk 0:00:11]}  Rxa6 {[%clk 0:00:20]} 37. c4 {[%clk 0:00:11]}  Ra5 {[%clk 0:00:20]} 38. Bd2 {[%clk 0:00:11]}  Ra6 {[%clk 0:00:17]} 39. Bb4 {[%clk 0:00:11]}  Bf8 {[%clk 0:00:16]} 40. Bd2 {[%clk 0:00:11]}  h5 {[%clk 0:00:16]} 41. gxh5 {[%clk 0:00:09]}  gxh5 {[%clk 0:00:17]} 42. Bc3 {[%clk 0:00:06]}  Bd6 {[%clk 0:00:16]} 43. Bd2 {[%clk 0:00:03]}  Kg6 {[%clk 0:00:15]} 44. Ng3 {[%clk 0:00:02]}  h4 {[%clk 0:00:15]} 45. Nh1 {[%clk 0:00:02]}  Kf5 {[%clk 0:00:15]} 46. Nf2 {[%clk 0:00:01]}  e4 {[%clk 0:00:15]} 47. Nd1 {[%clk 0:00:01]}  Bf4 {[%clk 0:00:15]} 0-1


[Site "https://www.chess.com"]

[Event "Titled Tuesday Blitz May 30 Late 2023"]
[White "Rosen, Eric"]
[Black "Hakobyan, Aram"]
[WhiteFideId "2032562"]
[BlackFideId "13306677"]
[WhiteElo "2331"]
[BlackElo "2584"]
[Result "0-1"]
[Round "03"]
[TimeControl "180+2"]
[Date "2023.05.31"]
[WhiteClock "0:00:01"]
[BlackClock "0:00:40"]

1. d4 {[%clk 0:03:00]}  g6 {[%clk 0:02:58]} 2. e4 {[%clk 0:03:00]}  Bg7 {[%clk 0:02:58]} 3. Nf3 {[%clk 0:03:01]}  Nf6 {[%clk 0:02:58]} 4. e5 {[%clk 0:02:59]}  Ne4 {[%clk 0:02:58]} 5. Bd3 {[%clk 0:02:57]}  d5 {[%clk 0:02:59]} 6. exd6 {[%clk 0:02:57]}  Nxd6 {[%clk 0:02:58]} 7. h3 {[%clk 0:02:55]}  O-O {[%clk 0:02:58]} 8. O-O {[%clk 0:02:55]}  Nc6 {[%clk 0:02:56]} 9. c3 {[%clk 0:02:55]}  e5 {[%clk 0:02:55]} 10. Bg5 {[%clk 0:02:48]}  f6 {[%clk 0:02:46]} 11. dxe5 {[%clk 0:02:46]}  Nxe5 {[%clk 0:02:45]} 12. Nxe5 {[%clk 0:02:44]}  fxg5 {[%clk 0:02:45]} 13. Nc4 {[%clk 0:02:29]}  Be6 {[%clk 0:02:37]} 14. Nbd2 {[%clk 0:02:15]}  Rf4 {[%clk 0:02:12]} 15. Qe2 {[%clk 0:02:09]}  Bd5 {[%clk 0:02:07]} 16. Ne3 {[%clk 0:02:04]}  Bc6 {[%clk 0:02:06]} 17. Ndc4 {[%clk 0:01:53]}  Nxc4 {[%clk 0:01:56]} 18. Bxc4+ {[%clk 0:01:53]}  Kh8 {[%clk 0:01:56]} 19. Rad1 {[%clk 0:01:53]}  Qe7 {[%clk 0:01:50]} 20. Rd2 {[%clk 0:01:49]}  Raf8 {[%clk 0:01:39]} 21. Bd5 {[%clk 0:01:40]}  h5 {[%clk 0:01:18]} 22. Bxc6 {[%clk 0:01:07]}  bxc6 {[%clk 0:01:19]} 23. Qd3 {[%clk 0:01:08]}  Kh7 {[%clk 0:01:18]} 24. Qd7 {[%clk 0:01:05]}  Qe5 {[%clk 0:00:45]} 25. Qxc6 {[%clk 0:01:00]}  Qxe3 {[%clk 0:00:44]} 26. fxe3 {[%clk 0:00:54]}  Rxf1+ {[%clk 0:00:45]} 27. Kh2 {[%clk 0:00:54]}  Be5+ {[%clk 0:00:46]} 28. g3 {[%clk 0:00:55]}  h4 {[%clk 0:00:46]} 29. Kg2 {[%clk 0:00:35]}  Bxg3 {[%clk 0:00:45]} 30. Qd7+ {[%clk 0:00:19]}  Kh6 {[%clk 0:00:45]} 31. Qb5 {[%clk 0:00:20]}  g4 {[%clk 0:00:40]} 32. Qxf1 {[%clk 0:00:06]}  gxh3+ {[%clk 0:00:40]} 33. Kg1 {[%clk 0:00:01]}  h2+ {[%clk 0:00:40]} 0-1


[Site "https://www.chess.com"]

[Event "Titled Tuesday Blitz May 30 Late 2023"]
[White "Makarian, Rudik"]
[Black "Melikyan, Gnel"]
[WhiteFideId "44105681"]
[BlackFideId "54109990"]
[WhiteElo "2461"]
[BlackElo "2138"]
[Result "1-0"]
[Round "03"]
[TimeControl "180+2"]
[Date "2023.05.31"]
[WhiteClock "0:00:32"]
[BlackClock "0:01:51"]

1. d4 {[%clk 0:03:00]}  Nf6 {[%clk 0:02:58]} 2. c4 {[%clk 0:03:01]}  e6 {[%clk 0:02:57]} 3. Nf3 {[%clk 0:03:02]}  d5 {[%clk 0:02:53]} 4. Nc3 {[%clk 0:03:02]}  Be7 {[%clk 0:02:52]} 5. Bf4 {[%clk 0:03:00]}  O-O {[%clk 0:02:52]} 6. e3 {[%clk 0:03:01]}  b6 {[%clk 0:02:50]} 7. Qc2 {[%clk 0:03:01]}  Bb7 {[%clk 0:02:39]} 8. cxd5 {[%clk 0:02:54]}  exd5 {[%clk 0:02:39]} 9. Bd3 {[%clk 0:02:53]}  Nbd7 {[%clk 0:02:37]} 10. g4 {[%clk 0:02:44]}  g6 {[%clk 0:02:32]} 11. h4 {[%clk 0:02:36]}  c5 {[%clk 0:02:19]} 12. h5 {[%clk 0:02:28]}  c4 {[%clk 0:02:19]} 13. Be2 {[%clk 0:02:20]}  Nxg4 {[%clk 0:02:15]} 14. Rg1 {[%clk 0:01:58]}  f5 {[%clk 0:02:10]} 15. hxg6 {[%clk 0:01:57]}  hxg6 {[%clk 0:02:10]} 16. Rxg4 {[%clk 0:01:56]}  fxg4 {[%clk 0:02:07]} 17. Qxg6+ {[%clk 0:01:56]}  Kh8 {[%clk 0:02:07]} 18. Qh6+ {[%clk 0:01:18]}  Kg8 {[%clk 0:02:06]} 19. Qg6+ {[%clk 0:01:18]}  Kh8 {[%clk 0:02:06]} 20. Kd2 {[%clk 0:00:53]}  Bh4 {[%clk 0:01:53]} 21. Rh1 {[%clk 0:00:41]}  gxf3 {[%clk 0:01:51]} 22. Bg5 {[%clk 0:00:32]} 1-0


[Site "https://www.chess.com"]

[Event "Titled Tuesday Blitz May 30 Late 2023"]
[White "Goryachkina, Aleksandra"]
[Black "Muradli, Mahammad"]
[WhiteFideId "4147103"]
[BlackFideId "13409301"]
[WhiteElo "2471"]
[BlackElo "2558"]
[Result "1/2-1/2"]
[Round "03"]
[TimeControl "180+2"]
[Date "2023.05.31"]
[WhiteClock "0:00:04"]
[BlackClock "0:00:03"]

1. e4 {[%clk 0:02:59]}  c5 {[%clk 0:02:59]} 2. Nf3 {[%clk 0:02:59]}  d6 {[%clk 0:02:59]} 3. Bb5+ {[%clk 0:02:59]}  Bd7 {[%clk 0:02:58]} 4. Bxd7+ {[%clk 0:02:59]}  Qxd7 {[%clk 0:02:58]} 5. O-O {[%clk 0:02:55]}  Nf6 {[%clk 0:02:58]} 6. Re1 {[%clk 0:02:55]}  Nc6 {[%clk 0:02:58]} 7. c3 {[%clk 0:02:53]}  e6 {[%clk 0:02:59]} 8. d4 {[%clk 0:02:53]}  cxd4 {[%clk 0:03:00]} 9. cxd4 {[%clk 0:02:53]}  d5 {[%clk 0:03:00]} 10. e5 {[%clk 0:02:53]}  Ne4 {[%clk 0:03:01]} 11. Re3 {[%clk 0:02:47]}  Be7 {[%clk 0:02:51]} 12. Ne1 {[%clk 0:02:40]}  f5 {[%clk 0:02:41]} 13. exf6 {[%clk 0:02:14]}  Bxf6 {[%clk 0:02:38]} 14. Nf3 {[%clk 0:02:14]}  O-O {[%clk 0:02:34]} 15. Nc3 {[%clk 0:02:13]}  Nd6 {[%clk 0:02:34]} 16. Re1 {[%clk 0:01:55]}  Nf5 {[%clk 0:02:24]} 17. Be3 {[%clk 0:01:55]}  Qf7 {[%clk 0:02:25]} 18. Qd2 {[%clk 0:01:49]}  h6 {[%clk 0:02:25]} 19. Ne2 {[%clk 0:01:47]}  Rac8 {[%clk 0:02:12]} 20. Ng3 {[%clk 0:01:45]}  Nd6 {[%clk 0:01:51]} 21. Rac1 {[%clk 0:01:39]}  Nc4 {[%clk 0:01:32]} 22. Qe2 {[%clk 0:01:39]}  e5 {[%clk 0:01:31]} 23. dxe5 {[%clk 0:01:21]}  N4xe5 {[%clk 0:01:32]} 24. Bc5 {[%clk 0:00:42]}  Rfe8 {[%clk 0:00:46]} 25. Nf5 {[%clk 0:00:40]}  Nxf3+ {[%clk 0:00:41]} 26. Qxf3 {[%clk 0:00:40]}  Bxb2 {[%clk 0:00:39]} 27. Rb1 {[%clk 0:00:31]}  Rxe1+ {[%clk 0:00:32]} 28. Rxe1 {[%clk 0:00:31]}  Ne5 {[%clk 0:00:30]} 29. Rxe5 {[%clk 0:00:18]}  Bxe5 {[%clk 0:00:28]} 30. Nxh6+ {[%clk 0:00:18]}  gxh6 {[%clk 0:00:24]} 31. Qg4+ {[%clk 0:00:18]}  Kh7 {[%clk 0:00:21]} 32. Qxc8 {[%clk 0:00:18]}  b6 {[%clk 0:00:18]} 33. Be3 {[%clk 0:00:12]}  d4 {[%clk 0:00:18]} 34. Bd2 {[%clk 0:00:12]}  Bg7 {[%clk 0:00:06]} 35. g3 {[%clk 0:00:08]}  Qxa2 {[%clk 0:00:06]} 36. Qf5+ {[%clk 0:00:08]}  Kh8 {[%clk 0:00:06]} 37. Qc8+ {[%clk 0:00:06]}  Qg8 {[%clk 0:00:06]} 38. Qd7 {[%clk 0:00:06]}  Qa2 {[%clk 0:00:05]} 39. Qc8+ {[%clk 0:00:06]}  Kh7 {[%clk 0:00:03]} 40. Qf5+ {[%clk 0:00:06]}  Kg8 {[%clk 0:00:04]} 41. Qc8+ {[%clk 0:00:06]}  Kf7 {[%clk 0:00:03]} 42. Qd7+ {[%clk 0:00:05]}  Kg6 {[%clk 0:00:03]} 43. Qg4+ {[%clk 0:00:04]}  Kf7 {[%clk 0:00:02]} 44. Qd7+ {[%clk 0:00:04]}  Kg8 {[%clk 0:00:03]} 45. Qc8+ {[%clk 0:00:04]}  Bf8 {[%clk 0:00:03]} 46. Qg4+ {[%clk 0:00:03]}  Kf7 {[%clk 0:00:03]} 47. Qxd4 {[%clk 0:00:03]}  Qb1+ {[%clk 0:00:02]} 48. Kg2 {[%clk 0:00:03]}  Qf5 {[%clk 0:00:03]} 49. Bf4 {[%clk 0:00:01]}  Qe6 {[%clk 0:00:04]} 50. Qd3 {[%clk 0:00:02]}  Qc6+ {[%clk 0:00:03]} 51. f3 {[%clk 0:00:02]}  Qe6 {[%clk 0:00:03]} 52. Qh7+ {[%clk 0:00:02]}  Bg7 {[%clk 0:00:04]} 53. Qc2 {[%clk 0:00:02]}  a5 {[%clk 0:00:04]} 54. Qc7+ {[%clk 0:00:02]}  Kg8 {[%clk 0:00:04]} 55. Qb8+ {[%clk 0:00:02]}  Kh7 {[%clk 0:00:05]} 56. Qc7 {[%clk 0:00:01]}  a4 {[%clk 0:00:05]} 57. Qc2+ {[%clk 0:00:01]}  Kg8 {[%clk 0:00:05]} 58. Qxa4 {[%clk 0:00:02]}  Qe2+ {[%clk 0:00:05]} 59. Kh3 {[%clk 0:00:02]}  Qxf3 {[%clk 0:00:04]} 60. Qc4+ {[%clk 0:00:03]}  Kh8 {[%clk 0:00:04]} 61. Qc8+ {[%clk 0:00:03]}  Kh7 {[%clk 0:00:04]} 62. Qf5+ {[%clk 0:00:03]}  Kg8 {[%clk 0:00:05]} 63. Qc8+ {[%clk 0:00:04]}  Kh7 {[%clk 0:00:05]} 64. Qf5+ {[%clk 0:00:04]}  Kg8 {[%clk 0:00:04]} 65. Qc8+ {[%clk 0:00:04]}  Kh7 {[%clk 0:00:03]} 1/2-1/2


[Site "https://www.chess.com"]